Workbook

Sheet Bill of Quantities
A1: =SUMMARY!A1 -> JOHANNESBURG WATER
A2: =SUMMARY!A3 -> GREATER ORANGE FARM PHASE 3D WATER INFRASTRUCTURE UPGRADE
A3: Item No. | B3: Payment Clause | C3: Description | D3: Unit | E3: Qty | F3: Rate | G3: Amount
A5: A. | B5: SABS 1200A & 1200AB | C5: SCHEDULE A: PRELIMINARY AND GENERAL
A6: =IF(E6=0,"",$A$5&COUNTIF($A5:A$6,"><*")+1) -> 
A7: =IF(E7=0,"",$A$5&COUNTIF($A$6:A6,"><*")+1) ->  | B7: 8.3 | C7: FIXED-CHARGE ITEMS
A8: =IF(E8=0,"",$A$5&COUNTIF($A$6:A7,"><*")+1) -> 
A9: 1.1 | B9: 8.3.1 | C9: Contractual requirements (sureties, insurance of the Works and plant, third party or public liability insurance and unemployment insurance to cover his compliance with the requirements of the Workmen's Compensation Act, 1941 (Act NO. 30 of 1941) and any other initial financing obligations of a preliminary and general nature, such as contributions to the CEITB) | D9: Sum | E9: 1
A10: =IF(E10=0,"",$A$5&COUNTIF($A$6:A9,"><*")+1) -> 
A11: =IF(E11=0,"",$A$5&COUNTIF($A$6:A10,"><*")+1) ->  | B11: 8.3.2 | C11: PROVISION OF FACILITIES ON SITE:
A12: =IF(E12=0,"",$A$5&COUNTIF($A$6:A11,"><*")+1) ->  | B12: 8.3.2.1 | C12: Facilities for Engineer:
A13: =IF(E13=0,"",$A$5&COUNTIF($A$6:A12,"><*")+1) -> 
A14: 1.2 | B14: PSA 8.3.2.1.a | C14: a) Facilities for the Engineer (No:1) and Parking | D14: Sum | E14: 1
A15: =IF(E15=0,"",$A$5&COUNTIF($A$6:A14,"><*")+1) -> 
C16: b) JW ISD Team (No:1) | D16: Sum | E16: 1
A17: =IF(E17=0,"",$A$5&COUNTIF($A$6:A16,"><*")+1) -> 
C18: c) QCO's and CLO Office (No.1) | D18: Sum | E18: 1
C20: d) Boardroom (No:1) | D20: Sum | E20: 1
A21: =IF(E21=0,"",$A$5&COUNTIF($A$6:A20,"><*")+1) -> 
C22: e) Parking (No.2) | D22: Sum | E22: 1
A23: =IF(E23=0,"",$A$5&COUNTIF($A$6:A22,"><*")+1) -> 
C24: f) Nameboards (No=2) | D24: Sum | E24: 1
A25: =IF(E25=0,"",$A$5&COUNTIF($A$6:A24,"><*")+1) -> 
C26: g) Communication | D26: Sum | E26: 1
C28: h) Telephone and Computer facilities for Complaints Handler Team (No.4) | D28: Sum | E28: 1
C30: i) Ablution and latrine facilities | D30: Sum | E30: 1
A31: =IF(E31=0,"",$A$5&COUNTIF($A$6:A30,"><*")+1) -> 
A32: 1.3 | B32: 8.3.2.2 | C32: Facilities for the Contractor
A33: =IF(E33=0,"",$A$5&COUNTIF($A$6:A32,"><*")+1) -> 
C34: a) Offices and storage sheds | D34: Sum | E34: 1
C36: b) Workshops | E36: 1
A37: =IF(E37=0,"",$A$5&COUNTIF($A$6:A34,"><*")+1) -> 
C38: c) Ablution and latrine facilities | D38: Sum | E38: 1
A39: =IF(E39=0,"",$A$5&COUNTIF($A$6:A38,"><*")+1) -> 
C40: d) Tools and equipment | D40: Sum | E40: 1
A41: =IF(E41=0,"",$A$5&COUNTIF($A$6:A40,"><*")+1) -> 
C42: e) Water supplies, electric power and communications | D42: Sum | E42: 1
A43: =IF(E43=0,"",$A$5&COUNTIF($A$6:A42,"><*")+1) -> 
C44: f) Dealing with water (SANS 1200A 5.5) | D44: Sum | E44: 1
A45: =IF(E45=0,"",$A$5&COUNTIF($A$6:A44,"><*")+1) -> 
B46: PS 7 | C46: g) Access (see SANS sub-clause 5.8) | D46: Sum | E46: 1
A48: 1.4 | C48: FACILITIES FOR SMME Fixed Charged Items
C50: a) Establishment of storage and Facilities for the SMMEs | D50: Sum | E50: 1
C52: b) Tools and equipment | D52: Sum | E52: 1
C54: c) Other Fixed related obligations | D54: Sum | E54: 1
C56: d) Removal of Facilities | D56: Sum | E56: 1
A57: =IF(E57=0,"",$A$5&COUNTIF($A$6:A54,"><*")+1) -> 
A58: 1.5 | B58: PSA 8.3.5.2 | C58: OHS Act Obligations (Compilation of OHSAct file) | D58: Sum | E58: 1
A59: =IF(E59=0,"",$A$5&COUNTIF($A$6:A58,"><*")+1) -> 
A60: 1.6 | B60: PSA 8.3.5.3 | C60: EMP Obligations (Compilation of environmental file) | D60: Sum | E60: 1
A62: 1.8 | B62: PSA 8.3.5.3 | C62: Issuing of notices to Customers | D62: Sum | E62: 1
A64: 1.8 | B64: 8.3.4 | C64: Removal of site Establishment | D64: Sum | E64: 1
A65: =IF(E65=0,"",$A$5&COUNTIF($A$6:A64,"><*")+1) -> 
A66: 1.9 | B66: 8.4 | C66: TIME RELATED ITEMS
A67: =IF(E67=0,"",$A$5&COUNTIF($A$6:A66,"><*")+1) -> 
A68: 1.10 | B68: 8.4.1 | C68: Contractual requirements | D68: Month | E68: 21
A69: =IF(E69=0,"",$A$5&COUNTIF($A$6:A68,"><*")+1) -> 
A70: 1.11 | B70: 8.4.2 | C70: Contractor's Supervision for the duration of construction | D70: Month | E70: 21
A71: =IF(E71=0,"",$A$2&COUNTIF($A$3:A70,"><*")+1) ->  | B71: TOTAL CARRIED FORWARD
A72: =IF(E72=0,"",$A$2&COUNTIF($A$3:A71,"><*")+1) ->  | B72: TOTAL BROUGHT FORWARD
A73: 1.12 | B73: 8.4.2.1 | C73: Facilities for Engineer:
A74: =IF(E74=0,"",$A$5&COUNTIF($A$6:A73,"><*")+1) -> 
A75: =IF(E75=0,"",$A$5&COUNTIF($A$6:A74,"><*")+1) -> A.12 | C75: a) Facilities for the Engineer (No:1) and Parking | D75: Month | E75: 21
A76: =IF(E76=0,"",$A$5&COUNTIF($A$6:A75,"><*")+1) -> 
C77: c) JW ISD Team (No:1) | D77: Month | E77: 21
C79: d) QCO's and CLO Office (No.1) | D79: Month | E79: 21
A81: =IF(E81=0,"",$A$5&COUNTIF($A$6:A79,"><*")+1) -> A.13 | C81: e) Boardroom (No:1) | D81: Month | E81: 21
A82: =IF(E82=0,"",$A$5&COUNTIF($A$6:A81,"><*")+1) -> 
A83: =IF(E83=0,"",$A$5&COUNTIF($A$6:A82,"><*")+1) -> A.14 | C83: f) Parking (No.2) | D83: Month | E83: 21
A84: =IF(E84=0,"",$A$5&COUNTIF($A$6:A83,"><*")+1) -> 
A85: =IF(E85=0,"",$A$5&COUNTIF($A$6:A84,"><*")+1) -> A.15 | C85: g) Nameboards (No=2) | D85: Month | E85: 21
A86: =IF(E86=0,"",$A$5&COUNTIF($A$6:A85,"><*")+1) -> 
C87: h) Communication | D87: Month | E87: 21
C89: h) Telephone and Computer facilities for Complaints Handler Team (No.4) | D89: Month | E89: 21
C91: i) Ablution and latrine facilities | D91: Month | E91: 21
A94: 1.13 | B94: 8.4.2.2 | C94: Facilities for the Contractor:
B95: 8.4.4 | C95: Contractor's head office overhead costs for the duration of the Contract | D95: Month | E95: 21
A97: =IF(E97=0,"",$A$5&COUNTIF($A$6:A96,"><*")+1) -> A.17 | C97: a) Offices and storage sheds | D97: Month | E97: 21
A98: =IF(E98=0,"",$A$5&COUNTIF($A$6:A97,"><*")+1) -> 
A99: =IF(E99=0,"",$A$5&COUNTIF($A$6:A98,"><*")+1) -> A.18 | C99: b) Ablution and latrine facilities | D99: Month | E99: 21
A100: =IF(E100=0,"",$A$5&COUNTIF($A$6:A99,"><*")+1) -> 
A101: =IF(E101=0,"",$A$5&COUNTIF($A$6:A100,"><*")+1) -> A.19 | C101: c) Tools and equipment | D101: Month | E101: 21
A102: =IF(E102=0,"",$A$5&COUNTIF($A$6:A101,"><*")+1) -> 
A103: =IF(E103=0,"",$A$5&COUNTIF($A$6:A102,"><*")+1) -> A.20 | C103: d) Water supplies, electric power and communications | D103: Month | E103: 21
A104: =IF(E104=0,"",$A$5&COUNTIF($A$6:A103,"><*")+1) -> 
A105: =IF(E105=0,"",$A$5&COUNTIF($A$6:A104,"><*")+1) -> A.21 | C105: e) Dealing with water (SANS 1200A 5.5) | D105: Month | E105: 21
A106: =IF(E106=0,"",$A$5&COUNTIF($A$6:A105,"><*")+1) -> 
A107: =IF(E107=0,"",$A$5&COUNTIF($A$6:A106,"><*")+1) -> A.22 | C107: f) Access (see sub-clause 5.8) | D107: Month | E107: 21
A109: 1.14 | B109: PSA 8.4.4 | C109: OHS Act Obligations | D109: Month | E109: 21
A110: =IF(E110=0,"",$A$5&COUNTIF($A$6:A107,"><*")+1) -> 
A111: 1.15 | B111: PSA 8.4.5 | C111: EMP Obligations | D111: Month | E111: 21
A113: 1.16 | B113: PSA 8.4.6 | C113: Security Services | D113: Month | E113: 21
A116: 1.17 | B116: PSA 8.4.6.1 | C116: g)Compliance with OHS & EM Plans including Safety Officer and Environmental Offcier Salaries | D116: Month | E116: 21
A117: =IF(E117=0,"",$A$5&COUNTIF($A$6:A107,"><*")+1) -> 
A118: 1.18 | C118: Facilities for SMMEs Time Related Items
C120: a) Storage Facilitities | D120: Month | E120: 21
C122: b) Tools and equipment | D122: Month | E122: 21
B124: 8.4.3 | C124: c) Contractor's Supervision of SMMEs for the duration of construction | D124: Month | E124: 21
C126: d) Other time related obligations | D126: Month | E126: 21
A128: 1.19 | B128: PS 3.2.8 | C128: SMME's Preliminary and General | D128: Prov.Sum | E128: 1 | F128: 8,290,943 | G128: =E128*F128 -> 8,290,943
A130: =IF(E130=0,"",$A$5&COUNTIF($A$6:A129,"><*")+1) -> A.29 | C130: a) Extra over items 1.19 above for overhead charges and profit | D130: % | E130: =+F128 -> 8,290,943
A132: 1.20 | B132: PSA 8.4.6.2 | C132: Security Services on-site for SMMEs facilities | D132: Month | E132: 0 | G132: Rate only
A133: =IF(E133=0,"",$A$2&COUNTIF($A$3:A132,"><*")+1) ->  | B133: TOTAL CARRIED FORWARD
A134: =IF(E134=0,"",$A$2&COUNTIF($A$3:A133,"><*")+1) ->  | B134: TOTAL BROUGHT FORWARD
A135: =IF(E135=0,"",$A$5&COUNTIF($A$6:A132,"><*")+1) -> 
A136: 1.21 | B136: PSA 8.5 | C136: PROVISIONAL SUMS STATED BY ENGINEER
A137: =IF(E137=0,"",$A$5&COUNTIF($A$6:A136,"><*")+1) -> 
C138: a) Community Liaison Officer Salaries and cellphone allowance (No 3) | D138: Prov. Sum | E138: 1 | F138: 945,000.00 | G138: =E138*F138 -> R945,000.00
A139: =IF(E139=0,"",$A$5&COUNTIF($A$6:A138,"><*")+1) -> 
C140: b) JW ISD representative (Community facilitator-including team leader and Complaints handler) | D140: Prov. Sum | E140: 1 | F140: 378,700.00 | G140: =E140*F140 -> R378,700.00
A141: =IF(E141=0,"",$A$5&COUNTIF($A$6:A140,"><*")+1) -> 
C142: c) Community awareness material | D142: Prov. Sum | E142: 1 | F142: 100,000.00 | G142: =E142*F142 -> R100,000.00
E143: 1
C144: d) QCF and QCO(No:5) | D144: Prov. Sum | E144: 1 | F144: 660,000.00 | G144: =E144*F144 -> R660,000.00
C146: e) Training but not limited to the following: Plumbing | D146: Prov. Sum | E146: 1 | F146: 600,000.00 | G146: R600,000.00
C148: f) MIS System or similar approved Training | D148: Prov. Sum | E148: 1 | F148: 100,000.00 | G148: =E148*F148 -> R100,000.00
C150: g) Reinstatement of Asphalt by JRA | D150: Prov. Sum | E150: 1 | F150: 350,000.00 | G150: =E150*F150 -> R350,000.00
C152: h) Overheads, charges and profit on item 1.21 (a) to 1.21 (g) | D152: % | E152: =SUM(F138:F150) -> 3,133,700
A154: 1.22 | C154: TEMPORARY WORKS
A156: 1.22.1 | C156: Existing Services
C158: a) Excavation by hand in all material to expose existing services | D158: m3 | E158: 1,000
A159: =IF(E159=0,"",$A$5&COUNTIF($A$6:A152,"><*")+1) -> 
C160: b) Temporary protection of services | D160: Sum | E160: 1
C162: c)Accomodation of traffic | D162: Sum | E162: 1
B164: PSA 8.4.15 | C164: d) Provision of photographic records | D164: Sum | E164: 1
A166: 1.23 | B166: 8.7 | C166: DAY WORKS (the rate shall cover overhead charges and profit of all day works itesm listed) (to be executed on instruction from the Engineer)
A167: =IF(E167=0,"",$A$5&COUNTIF($A$6:A166,"><*")+1) -> 
A168: 1.23.1 | C168: Labour
A169: =IF(E169=0,"",$A$5&COUNTIF($A$6:A168,"><*")+1) -> 
C170: a) Unskilled | D170: hr | E170: 150
A171: =IF(E171=0,"",$A$5&COUNTIF($A$6:A170,"><*")+1) -> 
C172: b) Semi skilled | D172: hr | E172: 150
A173: =IF(E173=0,"",$A$5&COUNTIF($A$6:A172,"><*")+1) -> 
C174: c) Skilled | D174: hr | E174: 150
A175: =IF(E175=0,"",$A$5&COUNTIF($A$6:A174,"><*")+1) -> 
C176: d) Armed Security guard | D176: hr | E176: 150
A177: =IF(E177=0,"",$A$5&COUNTIF($A$6:A176,"><*")+1) ->  | B177: TOTAL CARRIED FORWARD
A178: =IF(E178=0,"",$A$5&COUNTIF($A$6:A177,"><*")+1) ->  | B178: TOTAL BROUGHT FORWARD
A179: =IF(E179=0,"",$A$5&COUNTIF($A$6:A178,"><*")+1) -> 
A180: 1.23.2 | C180: TLB's (Tractor loader backhoe)
A181: =IF(E181=0,"",$A$5&COUNTIF($A$6:A180,"><*")+1) -> 
C182: a) 2x4 | D182: hr | E182: 150
A183: =IF(E183=0,"",$A$5&COUNTIF($A$6:A182,"><*")+1) -> 
C184: b) 4x4 | D184: hr | E184: 150
A185: =IF(E185=0,"",$A$5&COUNTIF($A$6:A184,"><*")+1) -> 
A186: =IF(E186=0,"",$A$5&COUNTIF($A$6:A185,"><*")+1) ->  | C186: Compactors
A187: =IF(E187=0,"",$A$5&COUNTIF($A$6:A186,"><*")+1) -> 
A188: 1.23.3 | C188: a) Wacker | D188: hr | E188: 48
A189: =IF(E189=0,"",$A$5&COUNTIF($A$6:A188,"><*")+1) -> 
C190: b) Plate compactor | D190: hr | E190: 48
A191: =IF(E191=0,"",$A$5&COUNTIF($A$6:A190,"><*")+1) -> 
A192: 1.23.4 | C192: Generator (Wet Rate)
A193: =IF(E193=0,"",$A$5&COUNTIF($A$6:A192,"><*")+1) -> 
C194: a) 3kVA | D194: hr | E194: 100
A195: =IF(E195=0,"",$A$5&COUNTIF($A$6:A194,"><*")+1) -> 
C196: b) 5kVa | D196: hr | E196: 100
A206: =IF(E206=0,"",$A$5&COUNTIF($A$6:A190,"><*")+1) ->  | B206: TOTAL CARRIED FORWARD TO SUMMARY
A207: Item No. | B207: Payment Clause | C207: Description | D207: Unit | E207: Qty | F207: Rate | G207: Amount
A209: 2 | B209: SABS 1200C | C209: SCHEDULE B: SITE CLEARANCE
A211: 2.1 | B211: 8.2.1 | C211: Clear and grub (2 metre width) | D211: m | E211: 1,800
A213: 2.2 | B213: PSC 8.2.14 | C213: Protection of trees as ordered by Engineer | D213: No | E213: 50
A215: 2.3 | B215: 8.2.10 | C215: Remove topsoil to nominal depth of 150mm and stockpile for re-use as directed by Engineer | D215: m3 | E215: 1,200
A217: 2.4 | B217: PSC 8.2.11b | C217: Removal of man-made surfaces, stockpile materials for later re-use
C219: a) Footways and driveways
C221: i) Asphalt (≤ 50mm thickness) | D221: m2 | E221: 200
C223: ii) Asphalt (≥ 50 - 100mm thickness) | D223: m2 | E223: 200
C225: iii) Interlocking concrete segmental paving blocks (all colours) | D225: m2 | E225: 2,400
C227: iv) Concrete slabs (450 x 450mm) | D227: m2 | E227: 120
C229: v) Brick paving | D229: m2 | E229: 2,400
C231: vi) Grassing and vegetation | D231: m2 | E231: 1,200
C233: vii) Unreinforced concrete <75mm thick | D233: m³ | E233: 45
C235: viii) Reinforced concrete <75mm thick | D235: m³ | E235: 45
C237: ix) Kerbing (All types of kerbs) | D237: m | E237: 2,000
C239: x) Dump rock/Stone pitching | D239: m³ | E239: 60
C241: xi) Steel palisade | D241: m | E241: 400
C243: xii) Concrete palisade | D243: m | E243: 400
C245: xiii) Removal of all other fences | D245: m | E245: 4,000
C247: xiv) Demolish of 115mm brick boundary wall | D247: m | E247: 2,500
C249: xv) Demolish of 230mm brick boundary wall | D249: m | E249: 2,000
C251: xvi) Tiles | D251: m2 | E251: 1000
A253: 2.5 | B253: PSC 8.2.12 | C253: Backfilling and reinstatement of man-made surfaces
C255: a) Backfilling and reinstatement of footways and driveways using materials recovered in item 2.4 above
C257: i) Interlocking concrete segmental paving blocks (all colours) | D257: m2 | E257: 2,400
C259: ii) Concrete slabs (450 x 450mm) | D259: m2 | E259: 120
C261: iii) Brick paving | D261: m2 | E261: 2,400
C263: iv) Grassing and vegetation | D263: m2 | E263: 1,200
C265: v) Kerbing (All types of kerbs) | D265: m | E265: 2,000
C267: vi) Dump rock/Stone pitching | D267: m³ | E267: 60
A268: TOTAL CARRIED FORWARD
A269: TOTAL BROUGHT FORWARD
A270: 2.6 | B270: PSC 8.2.12 | C270: a) Backfilling and reinstatement of footways and driveways using new materials
C272: i) Asphalt (≤ 50mm thickness) | D272: m2 | E272: =+E221 -> 200
C274: ii) Asphalt (≥ 50 - 100mm thickness) | D274: m2 | E274: =+E223 -> 200
C276: iii) Interlocking concrete segmental paving blocks (all colours) | D276: m2 | E276: =+E257*0.3 -> 720
C278: iv) Concrete slabs (450 x 450mm) | D278: m2 | E278: =+E259*0.3 -> 36
C280: v) Brick paving all colours | D280: m2 | E280: =+E261*0.3 -> 720
C282: vi) Grassing and vegetation | D282: m2 | E282: =+E263*0.3 -> 360
C284: vii) Unreinforced concrete <75mm thick | D284: m³ | E284: =+E233 -> 45
C286: viii) Reinforced concrete <75mm thick | D286: m³ | E286: =+E235 -> 45
C288: ix) Kerbing (All types of kerbs) | D288: m | E288: =+E265*0.3 -> 600
... 304 more rows

Sheet SUMMARY
A1: JOHANNESBURG WATER
A2: CONTRACT NUMBER: JW14427D
A3: GREATER ORANGE FARM PHASE 3D WATER INFRASTRUCTURE UPGRADE
A4: DESCRIPTION | E4: AMOUNT
A6: ='Bill of Quantities'!C5 -> SCHEDULE A: PRELIMINARY AND GENERAL | E6: R
A8: SCHEDULE B: SITE CLEARANCE | E8: R
A10: SCHEDULE C: EARTHWORKS (PIPE TRENCHES) | E10: R
A12: SCHEDULE D: BEDDING (PIPES) | E12: R
A14: SCHEDULE E: MEDIUM PRESSURE PIPELINES | E14: R
A16: SCHEDULE F: ERF CONNECTIONS | E16: R
A18: SCHEDULE G: YARD CONNECTIONS | E18: R
A20: SCHEDULE H: ON PROPERTY PLUMBING | E20: R
A22: SCHEDULE I: METER INSTALLATION | E22: R
A24: SCHEDULE J: OCCUPATIONAL HEALTH AND SAFETY | E24: R
A26: SUBTOTAL 1……………………………………..……………………………… | E26: R
A27: Escalation
A28: SUBTOTAL 2……………………………………..………………………………
A29: Add Estimated Escalation (@ 7% of Subtotal 1) | E29: R
A30: SUBTOTAL 2 | E30: R | G30: =F30*30% -> 0
A31: Add Contigencies (@ 10% of Subtotal 2) | E31: R | G31: =20%*G30 -> 0
A32: SUBTOTAL 3……………………………………..……………………………… | E32: R
A33: Add VAT (15% of Subtotal 3) | E33: R
A34: AMOUNT INCL.VAT | E34: R
A109: 1.14
A111: 1.15
A113: 1.16
A116: 1.17 | C116: g)Compliance with OHS & EM Plans including Safety Officer and Environmental Offcier Salaries | E116: 21
A118: 1.18
E120: 21
E124: 21
A128: 1.19
C130: a) Extra over items 1.19 above for overhead charges and profit
A132: 1.20 | G132: Rate only
A136: 1.21
C152: h) Overheads, charges and profit on item 1.21 (a) to 1.21 (g)
A154: 1.22
A156: 1.22.1
A166: 1.23
A168: 1.23.1
A180: 1.23.2
A188: 1.23.3
A192: 1.23.4
E351: 757
E367: 1892
E422: 0 | G422: Rate only
E423: 0 | G423: Rate only
E424: 0 | G424: Rate only
E613: 0 | G613: Rate only
E614: 2270
E615: 0 | G615: Rate only
E619: 7568
E621: 1
E672: 7568
E674: 7568
E682: 4541
E686: 2649
E688: 2649
E692: 2649
E694: 2649
E698: 4541
E700: 4541
E702: 4541
A704: 8.5,4
E706: 3784
E708: 3784
A710: 8.5,5
E712: 3784
E714: 3784
E716: 1514
E718: 1514
E720: 5298
E750: 10595
E752: 7946
E754: 10595
E759: 5298
E761: 7946
E763: 7946
E767: 10595
E769: 5298
E771: 7946
E775: 5298
E777: 7946
E779: 10595
E784: 7946
E788: 10595
E790: 5298
B798: PF22.7 | E798: 7568
B800: PF22.9 | E800: 7568
B802: PF22.10 | E802: 7568
B804: PF22.8 | E804: 7568
B808: PF22.2.1
B810: PF22.2.3 | E810: 7568
B817: PF22.3.2
B821: PF 22.4 | E821: 7568
